bitfinex/quotes_SOLUSD_20220226
["timestamp","ask_amount","ask_price","bid_price","bid_amount"]
[1645910145077,1.8168812,91.838,91.73,24.7972]
[1645910146177,53.46793936,91.829,91.73,41.1508]
[1645910146379,1.78799858,91.828,91.73,57.0108]
[1645910147577,77.39643936,91.829,91.731,113.458]
[1645910147779,77.39643936,91.829,91.731,116.20478921]
[1645910147977,53.46793936,91.829,91.733,109.1]
[1645910148177,53.46793936,91.829,91.735,109.1]
[1645910148378,53.46793936,91.829,91.736,2.50850065]
[1645910148678,53.46793936,91.829,91.75,15.86]
[1645910148877,53.46793936,91.829,91.751,23.9195]
[1645910151785,1.86168722,91.828,91.751,23.9195]
[1645910152683,78.40923936,91.829,91.751,23.9195]
[1645910152885,1.74457472,91.828,91.751,23.9195]
[1645910162300,88.91819987,91.828,91.722,4.357]
[1645910162499,78.40923936,91.829,91.722,2.58938502]
[1645910162500,88.91819987,91.819,91.722,2.58938502]
[1645910162701,23.8283,91.818,91.723,24.3356]
[1645910162902,23.8283,91.818,91.724,2.90935995]
[1645910165507,23.8283,91.818,91.73,16.3536]
[1645910165808,23.8283,91.818,91.732,2.71044314]
[1645910166021,53.46793936,91.829,91.732,2.71044314]
[1645910166423,53.46793936,91.829,91.733,109.1]
[1645910166625,53.46793936,91.829,91.734,3.10346554]
[1645910166824,53.46793936,91.829,91.736,2.86364759]
[1645910167022,53.46793936,91.829,91.75,15.86]
[1645910167229,53.46793936,91.829,91.752,2.7666194]
[1645910167826,76.54723936,91.829,91.752,2.7666194]
[1645910170030,109.1,91.828,91.752,2.7666194]
[1645910170830,1.69238648,91.827,91.723,23.2591]
[1645910171030,1.69238648,91.827,91.724,2.96569409]
[1645910171831,1.8524551,91.827,91.724,2.96569409]
[1645910172234,1.8524551,91.827,91.551,285.96920609]
[1645910172235,16.3652,91.81,91.692,23.1834]
[1645910172439,152.79041021,91.799,91.693,3.07476699]
[1645910172645,109.1,91.789,91.693,3.07476699]
[1645910172835,1.73506495,91.788,91.693,3.07476699]
[1645910173444,22.8371,91.787,91.694,23.1828]
[1645910173638,22.8371,91.787,91.695,2.64922131]
[1645910174539,48.15960293,91.779,91.695,2.64922131]
[1645910175942,109.1,91.778,91.695,2.64922131]
[1645910176144,48.15960293,91.779,91.695,2.64922131]
[1645910176343,16.3631,91.77,91.695,2.64922131]
[1645910180656,109.1,91.769,91.694,23.1828]
[1645910180851,109.1,91.769,91.695,3.03417752]
[1645910180852,54.14629542,91.759,91.695,3.03417752]
[1645910181656,109.1,91.758,91.695,3.03417752]
[1645910181852,109.1,91.758,91.64,32.2285]
[1645910182061,109.1,91.758,91.651,3.10564641]
[1645910182062,109.1,91.756,91.651,3.10564641]
[1645910182453,109.1,91.754,91.651,3.10564641]
[1645910182755,109.1,91.737,91.651,3.10564641]
[1645910182953,109.1,91.729,91.651,3.10564641]
[1645910183353,28.33598447,91.728,91.651,3.10564641]
[1645910183553,109.1,91.727,91.651,3.10564641]
[1645910184553,109.1,91.726,91.651,3.10564641]
[1645910184752,131.7027,91.726,91.651,3.10564641]
[1645910185155,160.03868447,91.726,91.651,3.10564641]
[1645910185754,160.03868447,91.726,91.625,0.18677558]
[1645910185955,109.1,91.722,91.625,0.18677558]
[1645910186554,48.27552305,91.723,91.63,16.3716]
[1645910186754,48.27552305,91.723,91.63,7.28]
[1645910186955,48.27552305,91.723,91.63,23.14]
[1645910187154,48.27552305,91.723,91.632,2.71582838]
[1645910187656,48.27552305,91.723,91.634,2.90446589]
[1645910187854,48.27552305,91.723,91.635,24.3743]
[1645910188056,48.27552305,91.723,91.636,2.34927001]
[1645910188257,54.5615,91.76,91.651,109.1]
[1645910188462,23.3311,91.768,91.661,109.1]
[1645910188656,23.3311,91.768,91.662,2.81035609]
[1645910189254,48.64042024,91.767,91.664,109.1]
[1645910189457,48.64042024,91.767,91.68,16.3626]
[1645910189654,48.64042024,91.767,91.682,2.55084041]
[1645910190854,16.3637,91.76,91.682,2.55084041]
[1645910191558,24.9023,91.759,91.682,2.55084041]
[1645910191754,53.23828447,91.759,91.682,2.55084041]
[1645910191954,28.33598447,91.758,91.682,2.55084041]
[1645910193359,109.1,91.757,91.681,23.6295]
[1645910193558,109.1,91.757,91.653,2.9696276]
[1645910193757,109.1,91.755,91.654,2.33798665]
[1645910193956,109.1,91.749,91.654,2.33798665]
[1645910194155,15.86,91.75,91.654,2.33798665]
[1645910194156,109.1,91.747,91.654,2.33798665]
[1645910194757,109.1,91.745,91.654,2.33798665]
[1645910195158,33.61122172,91.746,91.654,2.33798665]
[1645910195159,109.1,91.743,91.654,2.33798665]
[1645910195561,109.1,91.741,91.654,2.33798665]
[1645910195962,109.1,91.739,91.654,2.33798665]
[1645910196361,109.1,91.737,91.654,2.33798665]
[1645910196859,137.43598447,91.736,91.654,2.33798665]
[1645910197269,28.33598447,91.736,91.654,2.33798665]
[1645910197460,23.4846,91.735,91.654,2.33798665]
[1645910197660,53.30549701,91.734,91.654,2.33798665]
[1645910199361,53.30549701,91.734,91.658,2.74353528]
[1645910199565,53.30549701,91.734,91.66,15.86]
[1645910199784,53.30549701,91.734,91.661,2.71596304]
[1645910199982,16.3652,91.76,91.671,2.4606662]
[1645910200381,54.5432,91.79,91.671,2.4606662]
[1645910200581,23.7408,91.78,91.673,2.25365004]
[1645910200984,44.51370267,91.768,91.673,2.25365004]
[1645910201583,16.3637,91.76,91.673,2.25365004]
[1645910202085,27.24838348,91.759,91.673,2.25365004]
[1645910203287,109.1,91.758,91.673,2.25365004]
[1645910204090,109.1,91.759,91.673,2.25365004]
[1645910204287,109.1,91.757,91.673,2.25365004]
[1645910204888,16.3637,91.76,91.673,2.25365004]
[1645910216095,16.3637,91.76,91.68,16.3626]
[1645910216294,16.3637,91.76,91.681,2.79870161]
[1645910222705,109.1,91.759,91.673,2.62626302]
[1645910222905,16.3637,91.76,91.673,2.62626302]
[1645910223107,27.24838348,91.758,91.673,2.62626302]
[1645910224306,109.1,91.757,91.673,2.62626302]
[1645910224510,22.9478,91.756,91.673,2.62626302]
[1645910225811,109.1,91.754,91.673,2.62626302]
[1645910226111,109.1,91.749,91.673,2.62626302]
[1645910226511,109.1,91.747,91.673,2.62626302]
[1645910227112,136.34838348,91.746,91.673,2.62626302]
[1645910227312,139.6302874,91.746,91.654,2.9650106]
[1645910227514,51.26007549,91.745,91.655,2.78412161]
[1645910228012,27.24838348,91.744,91.655,2.78412161]
[1645910229815,15.86,91.74,91.655,2.78412161]
[1645910230015,52.30031588,91.739,91.655,2.78412161]
[1645910230216,109.1,91.738,91.655,2.78412161]
[1645910230418,1.55178602,91.737,91.653,4.361]
[1645910230715,109.1,91.736,91.653,4.361]
[1645910230917,1.8477441,91.735,91.619,2.7254007]
[1645910231118,109.1,91.719,91.619,2.7254007]
[1645910231315,138.9444,91.719,91.619,2.7254007]
[1645910231518,109.1,91.717,91.619,2.7254007]
[1645910231919,136.34838348,91.716,91.619,2.7254007]
[1645910232316,27.24838348,91.715,91.619,2.7254007]
[1645910232715,109.1,91.714,91.619,2.7254007]
[1645910232919,109.1,91.709,91.619,2.7254007]
[1645910233116,109.1,91.707,91.619,2.7254007]
[1645910233735,109.1,91.705,91.619,2.7254007]
[1645910234035,15.86,91.7,91.619,2.7254007]
[1645910234637,23.1226,91.707,91.619,2.7254007]
[1645910235636,23.1226,91.707,91.619,5.47218991]
[1645910235837,23.1226,91.707,91.621,2.8048461]
[1645910238440,50.37098348,91.707,91.621,2.8048461]
[1645910238640,109.1,91.706,91.621,2.8048461]
[1645910239040,27.24838348,91.705,91.621,2.8048461]
[1645910239345,109.1,91.704,91.621,2.8048461]
[1645910239740,109.1,91.702,91.621,2.8048461]
[1645910240342,27.24838348,91.701,91.618,47.3831]
[1645910240541,1.73304143,91.699,91.618,47.3831]
[1645910240946,109.1,91.697,91.618,47.3831]
[1645910241141,1.6955406,91.696,91.618,47.3831]
[1645910241343,109.1,91.695,91.618,47.3831]
[1645910241541,109.1,91.689,91.618,47.3831]
[1645910242145,70.4651,91.69,91.618,47.3831]
[1645910242343,54.6051,91.69,91.619,2.78485086]
[1645910246150,24.1235,91.695,91.619,2.78485086]
[1645910247749,59.64669552,91.708,91.619,2.78485086]
[1645910247950,16.3712,91.72,91.621,3.09186275]
[1645910248349,16.3712,91.72,91.622,2.74678921]
[1645910248549,16.3712,91.72,91.622,25.7810492]
[1645910248749,16.3712,91.72,91.623,2.9227523]
[1645910248950,49.31979092,91.719,91.623,28.7038015]
[1645910249153,49.31979092,91.719,91.624,2.79486276]
[1645910249554,49.31979092,91.719,91.64,16.3697]
[1645910249759,49.31979092,91.719,91.641,22.6252]
[1645910249953,27.24838348,91.718,91.642,2.95273762]
[1645910252157,109.1,91.717,91.642,2.95273762]
[1645910252359,15.86,91.71,91.619,2.77239718]
[1645910252555,49.31979092,91.719,91.619,2.77239718]
[1645910252556,109.1,91.709,91.619,2.77239718]
[1645910252755,137.98933544,91.709,91.619,2.77239718]
[1645910253155,109.1,91.707,91.62,24.0647]
[1645910253355,109.1,91.707,91.621,3.05028942]
[1645910253557,136.34838348,91.706,91.621,3.05028942]
[1645910253958,27.24838348,91.705,91.621,3.05028942]
[1645910256459,43.68458348,91.705,91.621,3.05028942]
[1645910256860,27.24838348,91.704,91.621,3.05028942]
[1645910258162,24.265,91.708,91.621,3.05028942]
[1645910260665,16.3787,91.71,91.63,16.3717]
[1645910260866,16.3696,91.73,91.631,27.36157786]
[1645910261066,16.3696,91.73,91.632,2.44369339]
[1645910261466,16.3696,91.73,91.632,5.1904826]
[1645910261666,16.3696,91.73,91.632,2.44369339]
[1645910261868,16.3696,91.73,91.633,2.74678921]
[1645910262468,16.3696,91.73,91.64,16.3699]
[1645910262670,16.3696,91.73,91.641,3.04518616]
[1645910262868,16.3696,91.73,91.642,22.6833]
[1645910263073,16.3696,91.73,91.643,2.32852625]
[1645910264370,16.3696,91.73,91.643,111.42852625]
[1645910264670,16.3696,91.73,91.65,16.368]
[1645910264870,16.3696,91.73,91.651,2.51891654]
[1645910266274,16.3659,91.75,91.661,109.1]
[1645910266473,396.38,91.95,91.661,109.1]
[1645910266474,54.5455,91.78,91.664,2.81565515]
[1645910266676,47.8561,91.81,91.664,2.81565515]
[1645910266875,47.8561,91.81,91.666,111.4647037]
[1645910267077,24.73505015,91.809,91.68,15.86]
[1645910267275,46.99486794,91.808,91.681,26.19038275]
[1645910267475,46.99486794,91.808,91.7,16.3592]
[1645910267677,133.83505015,91.807,91.701,2.76954075]
[1645910267877,135.47600211,91.807,91.702,46.2651]
[1645910268074,109.1,91.805,91.703,3.06740762]
[1645910268478,109.1,91.803,91.703,3.06740762]
[1645910268775,26.44044392,91.802,91.703,3.06740762]
[1645910268975,109.1,91.801,91.703,3.06740762]
[1645910269175,1.52747038,91.8,91.703,3.06740762]
[1645910269374,110.59685054,91.799,91.703,3.06740762]
[1645910269875,109.1,91.797,91.703,3.06740762]
[1645910270277,109.1,91.795,91.703,3.06740762]
[1645910270480,16.3635,91.79,91.703,3.06740762]
[1645910270676,109.1,91.789,91.703,3.06740762]
[1645910271679,109.1,91.793,91.703,3.06740762]
[1645910271879,109.1,91.787,91.703,3.06740762]
[1645910272078,131.7808,91.787,91.703,3.06740762]
[1645910272287,109.1,91.779,91.703,3.06740762]
[1645910272479,109.1,91.777,91.703,3.06740762]
[1645910272880,109.1,91.777,91.682,24.2785]
[1645910272881,109.1,91.777,91.683,2.59889548]
[1645910273083,109.1,91.775,91.683,27.51799548]
[1645910273279,109.1,91.775,91.684,2.60432112]
[1645910273485,109.1,91.773,91.684,2.60432112]
[1645910273681,109.1,91.769,91.663,2.4057089]
[1645910273880,109.1,91.759,91.664,24.3637]
[1645910274081,117.55,91.759,91.665,2.50778962]
[1645910274483,109.1,91.757,91.665,2.50778962]
[1645910275703,1.37778207,91.756,91.665,2.50778962]
[1645910276102,22.9133,91.758,91.665,2.50778962]
[1645910280909,7.15,91.757,91.665,2.50778962]
[1645910281107,22.9133,91.758,91.665,2.50778962]
[1645910283110,16.3678,91.76,91.67,15.86]
[1645910283311,109.1,91.797,91.67,15.86]
[1645910283312,54.5393,91.79,91.671,2.48609816]
[1645910283511,54.5393,91.79,91.671,26.01543451]
[1645910283512,23.2555,91.777,91.671,26.01543451]
[1645910283712,23.2555,91.777,91.672,25.93367504]
[1645910283910,23.2555,91.777,91.673,6.79134116]
[1645910284111,23.2555,91.777,91.673,9.53813037]
[1645910284511,16.3611,91.77,91.69,16.361]
[1645910284711,16.3611,91.77,91.692,2.38844462]
[1645910289620,16.3611,91.77,91.692,10.86844462]
[1645910290020,54.5283,91.81,91.7,16.3589]
[1645910290224,54.5283,91.81,91.701,2.61369461]
[1645910290621,54.5283,91.81,91.701,111.71369461]
[1645910290823,24.2647,91.813,91.703,109.1]
[1645910291129,24.2647,91.813,91.741,3.02102166]
[1645910291330,24.2647,91.813,91.742,2.66706175]
[1645910291623,45.34667576,91.812,91.742,2.66706175]
[1645910293223,24.73505015,91.811,91.742,2.66706175]
[1645910293425,109.1,91.81,91.742,2.48569402]
[1645910293725,24.73505015,91.809,91.732,3.05760214]
[1645910293927,109.1,91.808,91.732,3.05760214]
[1645910295126,109.1,91.807,91.732,3.05760214]
[1645910296226,109.1,91.811,91.732,3.05760214]
[1645910296627,109.1,91.811,91.713,2.70463426]
[1645910302833,45.34667576,91.812,91.713,2.70463426]
[1645910303033,45.34667576,91.812,91.72,16.3556]
[1645910303233,45.34667576,91.812,91.721,2.97191939]
[1645910313246,45.34667576,91.812,91.73,16.3539]
[1645910313449,45.34667576,91.812,91.731,2.376822]
[1645910313651,45.34667576,91.812,91.733,2.80632466]
[1645910316253,70.08172591,91.812,91.733,2.80632466]
[1645910316455,109.1,91.811,91.733,2.80632466]
[1645910317259,110.92617324,91.799,91.703,4.359]
[1645910317456,110.92617324,91.799,91.703,7.01027966]
[1645910317457,109.1,91.789,91.703,7.01027966]
[1645910317655,116.83,91.789,91.703,7.01027966]
[1645910317855,135.29105015,91.788,91.703,7.01027966]
[1645910318356,26.19105015,91.787,91.703,7.01027966]
[1645910318556,16.3646,91.78,91.703,7.01027966]
[1645910318758,45.04988868,91.779,91.703,7.01027966]
[1645910318957,68.24978868,91.779,91.703,7.01027966]
[1645910319558,100.68083883,91.779,91.703,7.01027966]
[1645910320561,16.3635,91.77,91.703,7.01027966]
[1645910323478,16.3635,91.77,91.703,2.65127966]
[1645910324279,68.24978868,91.779,91.703,2.65127966]
[1645910327682,45.04988868,91.779,91.703,2.65127966]
[1645910330188,23.15,91.787,91.702,24.2301]
[1645910330392,23.15,91.787,91.703,109.1]
[1645910330586,22.6833,91.799,91.704,2.49641774]
[1645910330989,42.88156783,91.798,91.704,2.49641774]
[1645910331385,42.88156783,91.798,91.704,109.1]
[1645910331586,42.88156783,91.798,91.72,16.3556]
[1645910331786,42.88156783,91.798,91.722,2.7062857]
[1645910332387,23.9693,91.824,91.723,2.75481714]
[1645910332589,23.9693,91.824,91.74,16.3521]
[1645910332789,22.6514,91.823,91.741,24.4602]
[1645910332992,22.6514,91.823,91.742,2.65491319]
[1645910333488,16.353,91.82,91.742,2.65491319]
[1645910336693,16.3497,91.84,91.75,16.3501]
[1645910336890,23.7449,91.852,91.75,23.07]
[1645910337291,23.7449,91.852,91.751,2.44899171]
[1645910337692,55.7083585,91.851,91.752,24.1903]
[1645910337991,55.7083585,91.851,91.753,3.01804614]
[1645910338591,16.3469,91.85,91.771,2.35301045]
[1645910338791,16.3469,91.85,91.773,2.85265721]
[1645910340795,132.85144031,91.849,91.772,24.8723]
[1645910340992,16.3523,91.84,91.772,24.8723]
[1645910341294,16.3523,91.84,91.762,2.72589558]
[1645910341492,47.64957365,91.839,91.762,2.72589558]
[1645910341892,23.74277365,91.838,91.762,2.72589558]
[1645910342492,16.3526,91.83,91.762,2.72589558]
[1645910343295,15.8526,91.83,91.762,2.72589558]
[1645910343499,39.59537365,91.83,91.762,2.72589558]
[1645910344003,39.59537365,91.83,91.754,16.3993]
[1645910344196,39.59537365,91.83,91.755,3.07916512]
[1645910344793,109.1,91.829,91.755,3.07916512]
[1645910344997,109.1,91.829,91.733,2.61461301]
[1645910345193,109.1,91.827,91.733,2.61461301]
[1645910345393,115.09,91.827,91.733,2.61461301]
[1645910345596,109.1,91.825,91.733,2.61461301]
[1645910345793,109.1,91.821,91.733,2.61461301]
[1645910346194,23.74277365,91.82,91.733,2.61461301]
[1645910346394,109.1,91.819,91.733,2.61461301]
[1645910347396,55.16885383,91.822,91.733,2.61461301]
[1645910348598,54.66885383,91.822,91.733,2.61461301]
[1645910349496,54.66885383,91.822,91.74,16.3518]
[1645910349696,54.66885383,91.822,91.741,2.79525755]
[1645910350497,54.66885383,91.822,91.742,23.7526]
[1645910350697,54.66885383,91.822,91.743,2.25763779]
[1645910357532,54.66885383,91.822,91.75,16.3503]
[1645910357734,54.66885383,91.822,91.751,2.33971266]
[1645910362235,54.66885383,91.822,91.742,23.7526]
[1645910362436,54.66885383,91.822,91.743,2.93188831]
[1645910364040,54.66885383,91.822,91.7,68.20070685]
[1645910364041,110.75509442,91.821,91.709,2.53375515]
[1645910364239,109.1,91.819,91.709,2.53375515]
[1645910364638,1.63072768,91.818,91.709,2.53375515]
[1645910364837,109.1,91.817,91.709,2.53375515]
[1645910365037,1.8291611,91.816,91.709,2.53375515]
[1645910365441,109.1,91.815,91.709,2.53375515]
[1645910365639,59.33156847,91.808,91.709,2.53375515]
[1645910365839,168.43156847,91.808,91.709,2.53375515]
[1645910366041,109.1,91.806,91.709,2.53375515]
[1645910366239,1.80841268,91.805,91.684,23.7962]
[1645910366443,109.1,91.804,91.685,2.5020855]
[1645910366645,16.3634,91.78,91.685,26.6565855]
[1645910366842,16.3634,91.78,91.686,2.41308925]
[1645910367243,16.3634,91.78,91.69,16.361]
[1645910367442,16.3634,91.78,91.694,16.2141]
[1645910367641,16.3634,91.78,91.701,2.74678921]
[1645910368542,16.3634,91.78,91.701,2.79710671]
[1645910368742,16.3634,91.78,91.703,2.4015036]
[1645910376653,16.3565,91.8,91.71,32.2174]
[1645910376859,16.3565,91.8,91.711,109.1]
[1645910377057,16.3565,91.8,91.712,3.02630478]
[1645910377459,16.3565,91.8,91.714,109.1]
[1645910377657,16.3565,91.8,91.715,2.4458192]
[1645910377857,60.55975461,91.799,91.715,2.4458192]
[1645910378058,16.3572,91.79,91.72,16.355]
[1645910378259,16.3572,91.79,91.715,2.4458192]
[1645910397099,109.1,91.789,91.715,2.4458192]
[1645910397300,16.3623,91.78,91.713,48.5276]
[1645910397500,54.37156377,91.779,91.713,48.5276]
[1645910397699,54.37156377,91.779,91.714,2.74142195]
[1645910398300,54.37156377,91.779,91.713,48.5276]
[1645910398500,16.3616,91.77,91.713,48.5276]
[1645910398900,16.3616,91.77,91.713,51.63149716]
[1645910399301,16.3616,91.77,91.714,2.63468602]
[1645910403407,15.86,91.84,91.714,2.63468602]
[1645910403606,24.3078,91.849,91.727,30.29628341]
[1645910403808,70.9756,91.897,91.74,15.86]
[1645910404006,54.44,91.897,91.741,137.20731546]
[1645910404206,54.44,91.897,91.741,193.03940783]
[1645910404405,54.44,91.897,91.82,16.3377]
[1645910404606,0.24996964,91.916,91.89,11.38]
[1645910404806,1.77741972,91.996,91.89,11.38]
[1645910405008,15.9717,91.997,91.89,11.38]
[1645910405209,15.952,92.002,91.891,5.63677765]
[1645910405407,162.75502601,92.009,91.9,15.86]
[1645910405609,53.65502601,92.009,91.901,2.94618231]
[1645910406407,21.77428248,92.012,91.89,11.38]
[1645910406408,22.01204065,91.978,91.89,11.38]
[1645910406608,45.96740445,91.978,91.89,11.38]
[1645910407215,51.10681436,91.977,91.89,11.38]
[1645910407611,109.1,91.975,91.89,11.38]
[1645910407817,15.86,91.97,91.89,11.38]
[1645910408214,45.96740445,91.969,91.89,11.38]
[1645910408411,67.74168693,91.969,91.89,11.38]
[1645910408611,109.1,91.968,91.89,11.38]
[1645910408811,50.67005982,91.966,91.89,11.38]
[1645910409211,1.61903495,91.965,91.89,11.38]
[1645910409412,55.7424394,91.965,91.89,11.38]
[1645910409613,164.60014315,91.964,91.89,11.38]
[1645910409811,16.333,91.94,91.89,11.38]
[1645910410011,46.82037659,91.939,91.89,11.38]
[1645910410311,46.82037659,91.939,91.84,15.86]
[1645910410510,46.82037659,91.939,91.85,16.3309]
[1645910410710,46.82037659,91.939,91.851,2.60332062]
[1645910412115,16.3301,91.96,91.86,16.3284]
[1645910412315,16.3301,91.96,91.87,15.86]
[1645910412514,16.3301,91.96,91.871,2.56028394]
[1645910413116,45.07862201,91.959,91.871,2.56028394]
[1645910413315,52.95862201,91.959,91.837,2.74678921]
[1645910413519,52.95862201,91.959,91.842,2.55100436]
[1645910413714,27.79155047,91.958,91.842,2.55100436]
[1645910413914,1.47922363,91.957,91.842,2.55100436]
[1645910414116,1.47922363,91.957,91.842,2.48538457]
[1645910414315,27.79155047,91.956,91.842,2.48538457]
[1645910414514,16.3316,91.94,91.842,2.48538457]
[1645910414713,49.88699685,91.939,91.842,2.48538457]
[1645910416519,16.3333,91.93,91.842,2.48538457]
[1645910418121,16.3333,91.93,91.842,111.58538457]
[1645910418319,16.3333,91.93,91.84,32.1923]
[1645910418320,27.79155047,91.965,91.852,2.61690295]
[1645910418520,1.63503995,92.022,91.861,109.1]
[1645910418725,1.60824141,92.027,91.871,109.1]
[1645910418921,1.60824141,92.027,91.871,2.25421405]
[1645910419120,52.63163998,92.022,91.871,2.25421405]
[1645910419320,1.40170239,92.021,91.89,16.3243]
[1645910419520,52.63163998,92.022,91.892,2.77396124]
[1645910419922,1.62545374,92.021,91.892,2.77396124]
[1645910420123,1.62545374,92.021,91.893,51.95275363]
[1645910420325,52.63163998,92.022,91.894,2.444025]
[1645910420529,46.11576298,91.999,91.9,16.3211]
[1645910420722,46.11576298,91.999,91.901,2.26833835]
[1645910421122,46.11576298,91.999,91.894,2.72959616]
[1645910421926,46.35944559,91.979,91.894,2.72959616]
[1645910425546,16.3296,91.95,91.894,2.72959616]
[1645910425746,45.590565,91.949,91.894,2.72959616]
[1645910427448,16.3311,91.94,91.894,2.72959616]
[1645910427847,16.3311,91.94,91.872,2.45322111]
[1645910428047,0.54624885,91.979,91.872,2.45322111]
[1645910428248,0.54624885,91.979,91.874,109.1]
[1645910428448,0.54624885,91.979,91.875,2.74377825]
[1645910428647,0.54624885,91.979,91.891,109.1]
[1645910428850,0.54624885,91.979,91.892,25.4383302]
[1645910429051,0.54624885,91.979,91.893,3.05937235]
[1645910430151,50.85037394,91.969,91.893,3.05937235]
[1645910432052,50.85037394,91.969,91.874,2.54108935]
[1645910433351,44.23724296,91.939,91.874,2.54108935]
[1645910437761,44.23724296,91.939,91.863,2.55704371]
[1645910438760,44.23724296,91.939,91.862,24.4784]
[1645910438961,16.3329,91.93,91.862,24.4784]
[1645910440761,44.23724296,91.939,91.863,2.87303956]
[1645910440961,44.23724296,91.939,91.863,10.48303956]
[1645910441563,44.23724296,91.939,91.864,109.1]
[1645910441762,44.23724296,91.939,91.871,2.53939235]
[1645910442662,44.23724296,91.939,91.862,24.4784]
[1645910444162,44.23724296,91.939,91.863,2.75451138]
[1645910444564,16.3329,91.93,91.863,2.75451138]
[1645910444765,44.23724296,91.939,91.863,2.75451138]
[1645910444964,44.23724296,91.939,91.864,2.74678921]
[1645910445862,44.23724296,91.939,91.863,2.75451138]
[1645910446465,23.9818,91.958,91.864,2.74678921]
[1645910446667,0.54624885,91.979,91.865,111.63626821]
[1645910446867,0.54624885,91.979,91.87,16.3289]
[1645910447067,0.54624885,91.979,91.881,109.1]
[1645910447269,0.54624885,91.979,91.883,3.11498416]
[1645910447868,0.54624885,91.979,91.882,23.3935]
[1645910448076,16.3296,91.95,91.882,23.3935]
[1645910448273,60.53816458,91.949,91.882,23.3935]
[1645910448868,60.53816458,91.949,91.883,2.65163982]
[1645910449071,60.53816458,91.949,91.883,111.75163982]
[1645910449269,60.53816458,91.949,91.884,2.80829102]
[1645910450469,60.53816458,91.949,91.89,16.3255]
[1645910450669,60.53816458,91.949,91.891,2.83864822]
[1645910451471,16.3274,91.97,91.891,2.83864822]
[1645910451672,16.3274,91.97,91.891,5.58543743]
[1645910452072,25.20884885,91.979,91.9,16.3236]
[1645910452273,0.54624885,91.979,91.911,109.1]
[1645910452476,0.35947327,91.979,91.914,2.89452251]
[1645910453274,0.35947327,91.979,91.912,23.7817]
[1645910455276,53.15432675,91.969,91.891,2.73309036]
[1645910455475,53.15432675,91.969,91.882,2.37971451]
[1645910456076,22.9156,91.968,91.882,2.37971451]
[1645910456477,16.3296,91.95,91.882,2.37971451]
[1645910456679,46.16645275,91.949,91.882,2.37971451]
[1645910458081,0.35947327,91.979,91.883,5.83954773]
[1645910458281,0.35947327,91.979,91.885,2.5633862]
[1645910458501,0.35947327,91.979,91.9,32.1835]
[1645910458704,0.35947327,91.979,91.901,45.6973]
[1645910458902,0.35947327,91.979,91.902,2.29743059]
[1645910459703,58.28888281,91.979,91.902,2.29743059]
[1645910460307,58.28888281,91.979,91.902,111.39743059]
[1645910460509,58.28888281,91.979,91.91,16.3218]
[1645910460705,58.28888281,91.979,91.911,111.84562621]
[1645910460910,0.35947327,91.979,91.912,3.08553506]
[1645910461108,0.35947327,91.979,91.914,109.1]
[1645910461307,0.35947327,91.979,91.915,2.40078124]
[1645910462508,0.35947327,91.979,91.913,23.8427]
[1645910463809,59.08410025,91.959,91.913,23.8427]
[1645910464810,59.08410025,91.959,91.88,15.86]
[1645910465011,59.08410025,91.959,91.881,22.8171]
[1645910465513,16.3269,91.96,91.881,22.8171]
[1645910465713,0.35947327,91.979,91.882,109.1]
[1645910466013,0.35947327,91.979,91.902,2.65249446]
[1645910466211,0.35947327,91.979,91.902,22.7319]
[1645910467612,59.23475924,91.959,91.902,22.7319]
[1645910468417,59.23475924,91.959,91.87,15.86]
[1645910468613,24.5985,91.958,91.872,2.2571744]
[1645910468815,16.3306,91.94,91.872,2.2571744]
[1645910469013,24.5985,91.958,91.872,2.2571744]
[1645910469914,24.5985,91.958,91.88,16.3271]
[1645910471117,56.35698878,91.939,91.871,23.7246]
[1645910471320,1.48024714,91.938,91.871,23.7246]
[1645910471915,1.48024714,91.938,91.867,24.0107]
[1645910472115,54.79983435,91.939,91.867,24.0107]
[1645910472517,56.54508019,91.939,91.867,24.0107]
[1645910472716,1.37153002,91.938,91.867,24.0107]
[1645910472917,54.79983435,91.939,91.867,24.0107]
[1645910473418,56.45436351,91.939,91.867,24.0107]
[1645910473620,55.713002,91.919,91.867,24.0107]
[1645910475034,16.3354,91.91,91.832,27.19702404]
[1645910475322,16.3354,91.91,91.832,24.4322]